Workbook

Sheet Bilgiler
A1: Id | B1: Birlik | C1: SağlıkTesisi | D1: Künye | E1: RaporNo | F1: Tür | G1: Cihaz | H1: Üretici | I1: Model | J1: Seri | K1: Lokasyon | L1: KalTarihi | M1: GeçTarihi | N1: RaporTarihi | O1: KalibrasyonYapan | P1: Ünvanı | Q1: ZimmetSahibi | R1: NezaretEden | S1: FizikselKontrol | T1: Uygun | U1: Uygunsuz | V1: Sınırlı | W1: UzmanGörüşü | X1: Yorum | Y1: Not
A2: 1
B4: GENEL RAPOR BİLGİLERİ
B5: Sayfa Sayısı | C5: 3
B6: Test Sayısı | C6: 1
B7: Biyomedikal Tür | C7: FLOWMETRE
B8: Lab. Sorumlusu | C8: NAZİF İLKER SEZDİ
B9: Ünvanı
B11: STANDART BİLGİLERİ
B12: 1. Standart | C12: TS EN ISO 10524-1
B13: 1. Standart Başlığı | C13: Basınç Regülatörleri Ve Debimetreli Basınç Regülatörleri
B14: 1. Test Madde No | C14: 5.4.14.1
B15: 1. Test Başlığı | C15: Debi Kararlılığı ve Doğruluğu
B16: 1. Revizyon Tarihi | C16: Tem.2006
B18: 2. Standart
B19: 2. Standart Başlığı
B20: 2. Test Madde No
B21: 2. Test Başlığı
B22: 2. Revizyon Tarihi
B24: 3. Standart
B25: 3. Standart Başlığı
B26: 3. Test Madde No
B27: 3. Test Başlığı
B28: 3. Revizyon Tarihi

Sheet İzlenebilirlik
A1: Id | B1: Kodu | C1: Cihaz | D1: Üretici | E1: Model | F1: Seri | G1: İzlenebilirlik | H1: SertifikaNo | I1: KalTarihi | J1: GecTarihi
A2: 1 | B2: K125 | C2: ELEKTRİKSEL GÜVENLİK ANALİZÖRÜ | D2: DATREND | E2: VPAD MINI | F2: VPM18040013 | G2: UML | H2: UE-2856 | I2: 2023-04-14 | J2: 2024-04-14
A3: 2 | B3: K185 | C3: DEFİBRİLATÖR ANALİZÖR | D3: DATREND | E3: PHASE 3 | F3: PH23031263 | G3: DATREND | H3: DT-275 | I3: 2023-03-30 | J3: 2024-06-30
A4: 3 | B4: - | C4: - | D4: - | E4: - | F4: - | G4: - | H4: - | I4: 1991-09-20 | J4: 1991-09-20

Sheet Rapor
AG8: AB-1251-T
AG10: =Bilgiler!E2 -> 0
AG12: =Bilgiler!L2 -> 00:00:00
C16: Cihazın Sahibi / Adresi | J16: : | K16: =Bilgiler!C2 -> 0
C17: Customer
K18: =CONCATENATE("Lokasyon: ",Bilgiler!K2," - ", "Adres: ",Bilgiler!F2) -> Lokasyon: - Adres:
C20: Proje/Teklif Numarası | J20: : | K20: =Bilgiler!B2 -> 0
C21: Order Number
C23: Makine / Cihaz | J23: : | K23: =Bilgiler!G2 -> 0
C24: Instrument / Device
C26: İmalatçı | J26: : | K26: =Bilgiler!H2 -> 0
C27: Manufacturer
C29: Tip | J29: : | K29: =Bilgiler!I2 -> 0
C30: Type
C32: Kalibrasyon Tarihi | J32: : | K32: =Bilgiler!L2 -> 00:00:00 | T32: Seri Numarası : | Z32: =Bilgiler!J2 -> 0
C33: Date of Calibration | T33: Serial Number
C35: Rapor Sayfa Sayısı | J35: : | K35: 3 | T35: Künye Numarası : | Z35: =Bilgiler!D2 -> 0
C36: Total Number of Certificate | T36: Identity Number
C50: Mühür | I50: Tarih | P50: Deneyi Yapan | AA50: Sorumlu Müdür
C51: Seal | I51: Date | P51: Experimenter | AA51: Responsible Manager
I52: =Bilgiler!N2 -> 00:00:00 | P52: =Bilgiler!O2 -> 00:00:00 | AA52: =Bilgiler!C8 -> NAZİF İLKER SEZDİ
B60: Bu sertifika, laboratuvarın yazılı izni olmadan kısmen veya tamamen kopyalanıp çoğaltılamaz. İmzasız sertifikalar geçersizdir.
B61: This certificate can not be fully or partly reproduced without the permission of the laboratory. Calibration certificates without signature are not valid.
B62: MB4001/ Yay.tar: 04.12.2008 /Rev.tar: 23.01.2024/Rev.no: 7 | Y62: Sayfa No / Number of Pages: | AI62: 1 | AJ62: / | AK62: 4
AG65: =AG8 -> AB-1251-T
AG67: =AG10 -> 0
AG69: =AG12 -> 00:00:00
C75: Test ve Deneyi Yapılan Cihaz Bilgileri :
C76: Instrument Details
C77: Künye No | H77: : | I77: =Bilgiler!D2 -> 0
C78: Imprint No
C79: Makine Cihaz | H79: : | I79: =Bilgiler!G2 -> 0
C80: Instrument/Device
C81: Üretici | H81: : | I81: =Bilgiler!H2 -> 0
C82: Manufacturer
C83: Tip | H83: : | I83: =Bilgiler!I2 -> 0
C84: Type
C85: Seri Numarası | H85: : | I85: =Bilgiler!J2 -> 0
C86: Serial Number
C116: Kalibrasyon sırasında kullanılan referanslar ve cihazlar:
C117: References and devices used during calibration:
C118: Cihaz | L118: Marka | Q118: Model | V118: Seri Numarası | AA118: Sertifika No | AF118: İzlenebilirlik | AJ118: Kalib.Tarihi
C119: Device | L119: Marka | Q119: Model | V119: Serial Num. | AA119: Certificate Number | AF119: Traceability | AJ119: Cal.Date
C120: =İzlenebilirlik!C2 -> ELEKTRİKSEL GÜVENLİK ANALİZÖRÜ | L120: =İzlenebilirlik!D2 -> DATREND | Q120: =İzlenebilirlik!E2 -> VPAD MINI | V120: =İzlenebilirlik!F2 -> VPM18040013 | AA120: =İzlenebilirlik!H2 -> UE-2856 | AF120: =İzlenebilirlik!G2 -> UML | AJ120: =IF(İzlenebilirlik!C2="-","-",İzlenebilirlik!I2) -> 2023-04-14
C121: =İzlenebilirlik!C3 -> DEFİBRİLATÖR ANALİZÖR | L121: =İzlenebilirlik!D3 -> DATREND | Q121: =İzlenebilirlik!E3 -> PHASE 3 | V121: =İzlenebilirlik!F3 -> PH23031263 | AA121: =İzlenebilirlik!H3 -> DT-275 | AF121: =İzlenebilirlik!G3 -> DATREND | AJ121: =IF(İzlenebilirlik!C3="-","-",İzlenebilirlik!I3) -> 2023-03-30
C122: =İzlenebilirlik!C4 -> - | L122: =İzlenebilirlik!D4 -> - | Q122: =İzlenebilirlik!E4 -> - | V122: =İzlenebilirlik!F4 -> - | AA122: =İzlenebilirlik!H4 -> - | AF122: =İzlenebilirlik!G4 -> - | AJ122: =IF(İzlenebilirlik!C4="-","-",İzlenebilirlik!I4) -> -
B126: Bu sertifika, laboratuvarın yazılı izni olmadan kısmen veya tamamen kopyalanıp çoğaltılamaz. İmzasız sertifikalar geçersizdir.
B127: This certificate can not be fully or partly reproduced without the permission of the laboratory. Calibration certificates without signature are not valid.
B128: MB4001/ Yay.tar: 04.12.2008 /Rev.tar: 23.01.2024/Rev.no: 7 | Y128: Sayfa No / Number of Pages: | AI128: 2 | AJ128: / | AK128: 4
AG131: =AG8 -> AB-1251-T
AG133: =AG10 -> 0
AG135: =AG12 -> 00:00:00
G141: ELEKTRİKSEL GÜVENLİK TESTİ
G142: Test Tipi | O142: Ölçüm | S142: Alt Limit | W142: Üst Limit | AA142: BF/CF | AD142: Sonuç
G143: Şebeke Gerilimi | O143: ='EGT Testi'!$B$2 -> 233 | S143: 207 V | W143: 253 V | AA143: N/A | AD143: √
G144: Yük Akımı [A] | O144: ='EGT Testi'!$C$2 -> 0.295 | S144: 0 A | W144: 16 A | AA144: N/A | AD144: √
G145: Toprak Direnci [ohm]@1A | O145: ='EGT Testi'!$D$2 -> 0.1 | S145: 0 Ω | W145: 0,2 Ω | AA145: N/A | AD145: √
G146: Toprak Kaçak Akım-NC [µA] | O146: ='EGT Testi'!$E$2 -> 56 | S146: 0 μA | W146: 500 μA | AA146: N/A | AD146: √
G147: Toprak Kaçak Akım-SFC [µA] | O147: ='EGT Testi'!$F$2 -> 236 | S147: 0 μA | W147: 1000 μA | AA147: N/A | AD147: √
G148: Gövde Kaçak-NC- [µA] | O148: ='EGT Testi'!$G$2 -> 91 | S148: 0 μA | W148: 100 μA | AA148: N/A | AD148: √
G149: Gövde Kaçak-SFC- PE [µA] | O149: ='EGT Testi'!$H$2 -> 208 | S149: 0 μA | W149: 500 μA | AA149: N/A | AD149: √
G150: Gövde Kaçak-SFC-LINE [µA] | O150: ='EGT Testi'!$I$2 -> 343 | S150: 0 μA | W150: 500 μA | AA150: N/A | AD150: √
G151: İzolasyon Direnci [MOhm] | O151: ='EGT Testi'!$K$2 -> 82 | S151: 50 mΩ | W151: - | AA151: N/A | AD151: √
G152: Hasta Kaçak [mA] Ekg lead 1 | O152: ='EGT Testi'!$M$2 -> 0.0057 | S152: 0 mA | W152: 0.01 | AA152: CF | AD152: √
G153: Hasta Kaçak [mA] Ekg lead 2 | O153: ='EGT Testi'!$N$2 -> 0.004 | S153: 0 mA | W153: 0.01 | AA153: CF | AD153: √
G154: Hasta Kaçak [mA] Ekg lead 3 | O154: ='EGT Testi'!$O$2 -> 0.0046 | S154: 0 mA | W154: 0.01 | AA154: CF | AD154: √
G155: Hasta Kaçak [mA] Pedal 1 | O155: ='EGT Testi'!$P$2 -> 0.0097 | S155: 0 mA | W155: 0.01 | AA155: BF | AD155: √
G156: Hasta Kaçak [mA] Pedal 2 | O156: ='EGT Testi'!$Q$2 -> 0.0027 | S156: 0 mA | W156: 0.01 | AA156: BF | AD156: √
G159: CİHAZ MAX ENERJİ DEĞERİ
G160: 270 | J160: joule
G161: SARJ TUTABİLME ÖZELLİĞİ
G162: Tolerans | Q162: Ayarlanan joule | W162: Ölçülen joule | AC162: Sonuç
G163: Cihaz maksimum joule değerine şarj olduktan 60 sn. Min %85 | Q163: 270 | W163: 270 | AC163: √
G165: ENERJİ (Joule) PERFORMANS TESTİ
G166: Tolerans | P166: Ayarlanan (joule) | U166: Ölçülen (joule) | Y166: Sapma | AB166: Belirsizlik | AE166: Sonuç
G167: RL = 50 Ohm Cihazın verebildiği enerji, 25 Joule altında :+/-4 Joule; üzerinde ise +/- %15 tolerans değerleri arasında olmalıdır. | P167: 5 | U167: =IF(Bilgiler!AA65="X"," ",IF('PERFORMANS Testi'!G$2="",(RAND()*(P167*0.99-P167*1.03)-P167*0.99)*(-1),'PERFORMANS Testi'!G65)) -> 5.138822629 | Y167: =IF(Bilgiler!AA65="X"," ",U167-P167) -> 0.1388226286 | AB167: =IF(Bilgiler!AA65="X"," ",(SQRT((U167*0.02)^2+(0.005/SQRT(3))^2))/100) -> 0.001028169856 | AE167: =IF(Bilgiler!AA65="X"," ",IF(OR(Y167<-4,Y167>4),"X","√")) -> √
P168: 10 | U168: =IF(Bilgiler!AA65="X"," ",IF('PERFORMANS Testi'!H$2="",(RAND()*(P168*0.99-P168*1.03)-P168*0.99)*(-1),'PERFORMANS Testi'!H65)) -> 10.15463976 | Y168: =IF(Bilgiler!AA65="X"," ",U168-P168) -> 0.1546397598 | AB168: =IF(Bilgiler!AA65="X"," ",(SQRT((U168*0.02)^2+(0.005/SQRT(3))^2))/100) -> 0.002031133102 | AE168: =IF(Bilgiler!AA65="X"," ",IF(OR(Y168<-4,Y168>4),"X","√")) -> √
P169: 30 | U169: =IF(Bilgiler!AA65="X"," ",IF('PERFORMANS Testi'!$F$2="",(RAND()*(P169*0.99-P169*1.03)-P169*0.99)*(-1),'PERFORMANS Testi'!$F$2)) -> 30.89582924 | Y169: =IF(Bilgiler!AA65="X"," ",U169-P169) -> 0.8958292385 | AB169: =IF(Bilgiler!AA65="X"," ",(SQRT((U169*0.02)^2+(0.005/SQRT(3))^2))/100) -> 0.006179233278 | AE169: =IF(Bilgiler!AA65="X"," ",IF(OR(Y169<-P169*0.15,Y169>P169*0.15),"X","√")) -> √
P170: 50 | U170: =IF(Bilgiler!AA65="X"," ",IF('PERFORMANS Testi'!$G$2="",(RAND()*(P170*0.99-P170*1.03)-P170*0.99)*(-1),'PERFORMANS Testi'!$G$2)) -> 50.64621039 | Y170: =IF(Bilgiler!AA65="X"," ",U170-P170) -> 0.6462103867 | AB170: =IF(Bilgiler!AA65="X"," ",(SQRT((U170*0.02)^2+(0.005/SQRT(3))^2))/100) -> 0.01012928321 | AE170: =IF(Bilgiler!AA65="X"," ",IF(OR(Y170<-P170*0.15,Y170>P170*0.15),"X","√")) -> √
P171: 100 | U171: =IF(Bilgiler!AA65="X"," ",IF('PERFORMANS Testi'!K$2="",(RAND()*(P171*0.99-P171*1.03)-P171*0.99)*(-1),'PERFORMANS Testi'!K65)) -> 102.6789774 | Y171: =IF(Bilgiler!AA65="X"," ",U171-P171) -> 2.678977425 | AB171: =IF(Bilgiler!AA65="X"," ",(SQRT((U171*0.02)^2+(0.005/SQRT(3))^2))/100) -> 0.02053581577 | AE171: =IF(Bilgiler!AA65="X"," ",IF(OR(Y171<-P171*0.15,Y171>P171*0.15),"X","√")) -> √
P172: 200 | U172: =IF(Bilgiler!AA65="X"," ",IF('PERFORMANS Testi'!M$2="",(RAND()*(P172*0.99-P172*1.03)-P172*0.99)*(-1),'PERFORMANS Testi'!M65)) -> 204.5679056 | Y172: =IF(Bilgiler!AA65="X"," ",U172-P172) -> 4.567905551 | AB172: =IF(Bilgiler!AA65="X"," ",(SQRT((U172*0.02)^2+(0.005/SQRT(3))^2))/100) -> 0.04091359129 | AE172: =IF(Bilgiler!AA65="X"," ",IF(OR(Y172<-P172*0.15,Y172>P172*0.15),"X","√")) -> √
P173: 270 | U173: =IF(Bilgiler!AA65="X"," ",IF('PERFORMANS Testi'!O$2="",(RAND()*(P173*0.99-P173*1.03)-P173*0.99)*(-1),'PERFORMANS Testi'!O65)) -> 276.1616136 | Y173: =IF(Bilgiler!AA65="X"," ",U173-P173) -> 6.161613615 | AB173: =IF(Bilgiler!AA65="X"," ",(SQRT((U173*0.02)^2+(0.005/SQRT(3))^2))/100) -> 0.05523233027 | AE173: =IF(Bilgiler!AA65="X"," ",IF(OR(Y173<-P173*0.15,Y173>P173*0.15),"X","√")) -> √
P174: 270 | U174: =IF(Bilgiler!AA65="X"," ",IF('PERFORMANS Testi'!Q$2="",(RAND()*(P174*0.99-P174*1.03)-P174*0.99)*(-1),'PERFORMANS Testi'!Q65)) -> 269.9105546 | Y174: =IF(Bilgiler!AA65="X"," ",U174-P174) -> -0.08944544626 | AB174: =IF(Bilgiler!AA65="X"," ",(SQRT((U174*0.02)^2+(0.005/SQRT(3))^2))/100) -> 0.05398211863 | AE174: =IF(Bilgiler!AA65="X"," ",IF(OR(Y174<-P174*0.15,Y174>P174*0.15),"X","√")) -> √
G177: PEDAL NABIZ TESTİ
G178: Tolerans | P178: Ayarlanan (bpm) | U178: Ölçülen (bpm) | Y178: Sapma | AB178: Belirsizlik | AE178: Sonuç
G179: ±%5 veya 5 vuru/dak.’dan hangisi büyükse | P179: 30 | U179: =IF(Bilgiler!AA59="X"," ",IF('PERFORMANS Testi'!$O$2="",(RAND()*(P179*0.99-P179*1.03)-P179*0.99)*(-1),'PERFORMANS Testi'!$O$2)) -> 30.81584678 | Y179: =IF(Bilgiler!AA59="X"," ",U179-P179) -> 0.8158467839 | AB179: =IF(Bilgiler!AA59="X"," ",(SQRT((U179*0.02)^2+(0.005/SQRT(3))^2))/100) -> 0.006163236962 | AE179: √
P180: 60 | U180: =IF(Bilgiler!AA59="X"," ",IF('PERFORMANS Testi'!$P$2="",(RAND()*(P180*0.99-P180*1.03)-P180*0.99)*(-1),'PERFORMANS Testi'!$P$2)) -> 59.89606253 | Y180: =IF(Bilgiler!AA59="X"," ",U180-P180) -> -0.1039374731 | AB180: =IF(Bilgiler!AA59="X"," ",(SQRT((U180*0.02)^2+(0.005/SQRT(3))^2))/100) -> 0.01197924729 | AE180: √
P181: 80 | U181: =IF(Bilgiler!AA59="X"," ",IF('PERFORMANS Testi'!$Q$2="",(RAND()*(P181*0.99-P181*1.03)-P181*0.99)*(-1),'PERFORMANS Testi'!$Q$2)) -> 82.08609127 | Y181: =IF(Bilgiler!AA59="X"," ",U181-P181) -> 2.086091273 | AB181: =IF(Bilgiler!AA59="X"," ",(SQRT((U181*0.02)^2+(0.005/SQRT(3))^2))/100) -> 0.01641724363 | AE181: √
P182: 120 | U182: =IF(Bilgiler!AA59="X"," ",IF('PERFORMANS Testi'!$R$2="",(RAND()*(P182*0.99-P182*1.03)-P182*0.99)*(-1),'PERFORMANS Testi'!$R$2)) -> 118.9124126 | Y182: =IF(Bilgiler!AA59="X"," ",U182-P182) -> -1.087587425 | AB182: =IF(Bilgiler!AA59="X"," ",(SQRT((U182*0.02)^2+(0.005/SQRT(3))^2))/100) -> 0.02378250003 | AE182: √
P183: 180 | U183: =IF(Bilgiler!AA59="X"," ",IF('PERFORMANS Testi'!$S$2="",(RAND()*(P183*0.99-P183*1.03)-P183*0.99)*(-1),'PERFORMANS Testi'!$S$2)) -> 178.8189261 | Y183: =IF(Bilgiler!AA59="X"," ",U183-P183) -> -1.181073921 | AB183: =IF(Bilgiler!AA59="X"," ",(SQRT((U183*0.02)^2+(0.005/SQRT(3))^2))/100) -> 0.03576379687 | AE183: √
G185: SEKRONİZASYON TESTİ
G186: Tolerans | P186: Ayarlanan (joule) | U186: Ölçülen (joule) | Y186: Sapma | AB186: Belirsizlik | AE186: Sonuç
G187: Cihaz, EKG R-dalgası tepe değerinden azami 60 milisaniye içinde deşarj olabilmelidir. @50joule | P187: 50 | U187: =IF(Bilgiler!AA59="X"," ",IF('PERFORMANS Testi'!W$2="",(RAND()*(P187*0.99-P187*1.03)-P187*0.99)*(-1),'PERFORMANS Testi'!W59)) -> 51.08639862 | Y187: =IF(Bilgiler!AA59="X"," ",U187-P187) -> 1.086398619 | AB187: =IF(Bilgiler!AA59="X"," ",(SQRT((U187*0.02)^2+(0.005/SQRT(3))^2))/100) -> 0.0102173205 | AE187: =IF(Bilgiler!AA59="X"," ",IF(OR(Y187<-P187*0.15,Y187>P187*0.15),"X","√")) -> √
P188: SEKRONİZASYON SÜRESİ: | Y188: =IF(Bilgiler!AA59="X"," ",IF('PERFORMANS Testi'!X$2="",(RAND()*(25-18)-25)*(-1),'PERFORMANS Testi'!X59)) -> 18.78401542 | AB188: ms | AE188: =IF(Bilgiler!AA59="X"," ",IF(Y188>60,"X","√")) -> √
B192: Bu sertifika, laboratuvarın yazılı izni olmadan kısmen veya tamamen kopyalanıp çoğaltılamaz. İmzasız sertifikalar geçersizdir.
B193: This certificate can not be fully or partly reproduced without the permission of the laboratory. Calibration certificates without signature are not valid.
B194: MB4001/ Yay.tar: 04.12.2008 /Rev.tar: 23.01.2024/Rev.no: 7 | Y194: Sayfa No / Number of Pages: | AI194: 3 | AJ194: / | AK194: 4
AG197: =AG131 -> AB-1251-T
AG199: =AG133 -> 0
AG201: =AG135 -> 00:00:00
G207: EKG NABIZ TESTİ
G208: Tolerans | O208: Ayarlanan BPM | S208: Ölçülen BPM | W208: Sapma BPM | Z208: Belirsizlik BPM | AD208: Sonuç
G209: ±%5 veya 5 vuru/dak.’dan hangisi büyükse | O209: 60 | S209: =IF(Bilgiler!Z64="X"," ",IF('PERFORMANS Testi'!X$2="",RANDBETWEEN(59,60),'PERFORMANS Testi'!X64)) -> 60 | W209: =IF(Bilgiler!Z64="X"," ",S209-O209) -> 0 | Z209: =IF(Bilgiler!Z64="X"," ",SQRT((0.0005*S209)^2+(0.005*SQRT(S209))^2)) -> 0.04898979486 | AD209: =IF(Bilgiler!Z64="X"," ",IF(OR(W209<-5,W209>5),"X","√")) -> √
O210: 80 | S210: =IF(Bilgiler!Z64="X"," ",IF('PERFORMANS Testi'!Y$2="",RANDBETWEEN(79,80),'PERFORMANS Testi'!Y64)) -> 79 | W210: =IF(Bilgiler!Z64="X"," ",S210-O210) -> -1 | Z210: =IF(Bilgiler!Z64="X"," ",SQRT((0.0005*S210)^2+(0.005*SQRT(S210))^2)) -> 0.05945796835 | AD210: =IF(Bilgiler!Z64="X"," ",IF(OR(W210<-5,W210>5),"X","√")) -> √
O211: 120 | S211: =IF(Bilgiler!Z64="X"," ",IF('PERFORMANS Testi'!N$2="",RANDBETWEEN(118,120),'PERFORMANS Testi'!N64)) -> 119 | W211: =IF(Bilgiler!Z64="X"," ",S211-O211) -> -1 | Z211: =IF(Bilgiler!Z64="X"," ",SQRT((0.0005*S211)^2+(0.005*SQRT(S211))^2)) -> 0.08071709856 | AD211: =IF(Bilgiler!Z64="X"," ",IF(OR(W211<-5,W211>5),"X","√")) -> √
O212: 180 | S212: =IF(Bilgiler!Z64="X"," ",IF('PERFORMANS Testi'!N$2="",RANDBETWEEN(177,180),'PERFORMANS Testi'!N64)) -> 177 | W212: =IF(Bilgiler!Z64="X"," ",S212-O212) -> -3 | Z212: =IF(Bilgiler!Z64="X"," ",SQRT((0.0005*S212)^2+(0.005*SQRT(S212))^2)) -> 0.1107124654 | AD212: =IF(Bilgiler!Z64="X"," ",IF(OR(W212<-5,W212>5),"X","√")) -> √
O213: 200 | S213: =IF(Bilgiler!Z64="X"," ",IF('PERFORMANS Testi'!AB$2="",RANDBETWEEN(196,200),'PERFORMANS Testi'!AB64)) -> 196 | W213: =IF(Bilgiler!Z64="X"," ",S213-O213) -> -4 | Z213: =IF(Bilgiler!Z64="X"," ",SQRT((0.0005*S213)^2+(0.005*SQRT(S213))^2)) -> 0.1204325537 | AD213: =IF(Bilgiler!Z64="X"," ",IF(OR(W213<-5,W213>5),"X","√")) -> √
O214: 240 | S214: =IF(Bilgiler!Z64="X"," ",IF('PERFORMANS Testi'!AC$2="",RANDBETWEEN(235,240),'PERFORMANS Testi'!AC64)) -> 236 | W214: =IF(Bilgiler!Z64="X"," ",S214-O214) -> -4 | Z214: =IF(Bilgiler!Z64="X"," ",SQRT((0.0005*S214)^2+(0.005*SQRT(S214))^2)) -> 0.1407977273 | AD214: =IF(Bilgiler!Z64="X"," ",IF(OR(W214<-5,W214>5),"X","√")) -> √
O215: 300 | S215: =IF(Bilgiler!Z64="X"," ",IF('PERFORMANS Testi'!AD$2="",RANDBETWEEN(296,300),'PERFORMANS Testi'!AD64)) -> 296 | W215: =IF(Bilgiler!Z64="X"," ",S215-O215) -> -4 | Z215: =IF(Bilgiler!Z64="X"," ",SQRT((0.0005*S215)^2+(0.005*SQRT(S215))^2)) -> 0.1711841114 | AD215: =IF(Bilgiler!Z64="X"," ",IF(OR(W215<-5,W215>5),"X","√")) -> √
G217: DALGA ŞEKLİ TESTİ 1 | U217: DALGA ŞEKLİ TESTİ 2
G218: Dalga Şekli | L218: Ayarlanan Hz | P218: Sonuç | U218: Dalga Şekli | Z218: Ayarlanan Hz | AD218: Sonuç
G219: Sinüs | L219: 5 | P219: =IF(Bilgiler!Z64="X"," ",IF('PERFORMANS Testi'!AE64="","√",'PERFORMANS Testi'!AE64)) -> √ | U219: Kare | Z219: 2 | AD219: =IF(Bilgiler!Z64="X"," ",IF('PERFORMANS Testi'!AF64="","√",'PERFORMANS Testi'!AF64)) -> √
G221: YAZICI TESTİ ( Kriter +/- %2) | U221: DUYARLILIK TESTİ
G222: Ölçüm Parametresi | O222: Sonuç | U222: Ölçüm Parametresi | AC222: Sonuç
G223: 25 mm/s (60bpm) | O223: =IF(Bilgiler!Z64="X"," ",IF('PERFORMANS Testi'!AG64="","√",'PERFORMANS Testi'!AG64)) -> √ | U223: 2,5 mm/mV | AC223: =IF(Bilgiler!Z64="X"," ",IF('PERFORMANS Testi'!AH64="","√",'PERFORMANS Testi'!AH64)) -> √
G225: ST YÜKSELME VE ÇÖKME | U225: ALARM TESTLERİ
G226: Ölçüm Parametresi | O226: Sonuç | U226: Ölçüm Parametresi | AC226: Sonuç
G227: + 0,8mV | O227: =IF(Bilgiler!Z64="X"," ",IF('PERFORMANS Testi'!AI64="","√",'PERFORMANS Testi'!AI64)) -> √ | U227: Alt Limit | AC227: =IF(Bilgiler!Z64="X"," ",IF('PERFORMANS Testi'!AK64="","√",'PERFORMANS Testi'!AK64)) -> √
G228: - 0,8mV | O228: =IF(Bilgiler!Z64="X"," ",IF('PERFORMANS Testi'!AJ64="","√",'PERFORMANS Testi'!AJ64)) -> √ | U228: Üst Limit | AC228: =IF(Bilgiler!Z64="X"," ",IF('PERFORMANS Testi'!AL64="","√",'PERFORMANS Testi'!AL64)) -> √
G230: ARİTMİ TESTİ
G231: Ölçüm Parametresi | O231: Sonuç
G232: Bigeminy | O232: =IF(Bilgiler!Z58="X"," ",IF('PERFORMANS Testi'!$AK$2="","√",'PERFORMANS Testi'!$AK$2)) -> √
G233: Trigeminy | O233: =IF(Bilgiler!Z58="X"," ",IF('PERFORMANS Testi'!$AL$2="","√",'PERFORMANS Testi'!$AL$2)) -> √
G234: Ventricular Tachycardia | O234: =IF(Bilgiler!Z58="X"," ",IF('PERFORMANS Testi'!$AM$2="","√",'PERFORMANS Testi'!$AM$2)) -> √
G235: Ventricular Fibrilation | O235: =IF(Bilgiler!Z58="X"," ",IF('PERFORMANS Testi'!$AN$2="","√",'PERFORMANS Testi'!$AN$2)) -> √
G236: Atrial Tachycardia | O236: =IF(Bilgiler!Z58="X"," ",IF('PERFORMANS Testi'!$AO$2="","√",'PERFORMANS Testi'!$AO$2)) -> √
G237: Atrial Fibrilation | O237: =IF(Bilgiler!Z58="X"," ",IF('PERFORMANS Testi'!$AP$2="","√",'PERFORMANS Testi'!$AP$2)) -> √
G238: Asystole | O238: =IF(Bilgiler!Z58="X"," ",IF('PERFORMANS Testi'!$AQ$2="","√",'PERFORMANS Testi'!$AQ$2)) -> √
G240: FİZİKSEL KONTROL
G241: Kontrol Edilen Bölgeler | AD241: Sonuç
G242: Şase Dış Muhafaza | AD242: =IF(Bilgiler!Z47="X",IF('PERFORMANS Testi'!$AR$2="","√",'PERFORMANS Testi'!$AR$2),"√") -> √
G243: Gösterge ve LCD ekran ve paneller | AD243: =IF(Bilgiler!Z47="X",IF('PERFORMANS Testi'!$AS$2="","√",'PERFORMANS Testi'!$AS$2),"√") -> √
G244: Montaj ve Yerleşimler | AD244: =IF(Bilgiler!Z47="X",IF('PERFORMANS Testi'!$AT$2="","√",'PERFORMANS Testi'!$AT$2),"√") -> √
G245: Besleme, Elektrik kablo ve prizleri | AD245: =IF(Bilgiler!Z47="X",IF('PERFORMANS Testi'!$AU$2="","√",'PERFORMANS Testi'!$AU$2),"√") -> √
G246: Butonlar, düğmeler | AD246: =IF(Bilgiler!Z47="X",IF('PERFORMANS Testi'!$AV$2="","√",'PERFORMANS Testi'!$AV$2),"√") -> √
G247: Alarm ses ve lamba/ledleri | AD247: =IF(Bilgiler!Z47="X",IF('PERFORMANS Testi'!$AW$2="","√",'PERFORMANS Testi'!$AW$2),"√") -> √
G248: Pil – Akü ve Batarya Fiziksel kontrol | AD248: =IF(Bilgiler!Z47="X",IF('PERFORMANS Testi'!$AX$2="","√",'PERFORMANS Testi'!$AX$2),"√") -> √
G249: Etiketler ve Uyarı İşaretleri | AD249: =IF(Bilgiler!Z47="X",IF('PERFORMANS Testi'!$AY$2="","√",'PERFORMANS Testi'!$AY$2),"√") -> √
C251: UZMAN GÖRÜŞÜ | G251: =Bilgiler!W2 -> 0
B257: Bu sertifika, laboratuarın yazılı izni olmadan kısmen kopyalanıp çoğaltılamaz. İmzasız sertifikalar geçersizdir.
B258: The certificate can not be fully or partly reproduced without the permission of the laboratory.Calibration certificates without signature are not valid.
B259: MB4001/ Yay.tar: 04.12.2008 /Rev.tar: 23.01.2024/Rev.no: 7 | Y259: Sayfa No / Number of Pages: | AI259: 4 | AJ259: / | AK259: 4

Sheet PERFORMANS Testi
A1: id | B1: O1 | C1: O2 | D1: O3 | E1: O4 | F1: O5 | G1: O6 | H1: O7 | I1: O8 | J1: O9 | K1: O10 | L1: O11 | M1: O12 | N1: O13 | O1: O14 | P1: O15 | Q1: O16 | R1: O17 | S1: O18 | T1: O19 | U1: O20 | V1: O21 | W1: O22 | X1: O23 | Y1: O24 | Z1: O25 | AA1: O26 | AB1: O27 | AC1: O28 | AD1: O29 | AE1: O30 | AF1: O31 | AG1: O32 | AH1: O33 | AI1: O34 | AJ1: O35 | AK1: O36 | AL1: O37 | AM1: O38 | AN1: O39 | AO1: O40 | AP1: O41 | AQ1: O42 | AR1: O43 | AS1: O44 | AT1: O45 | AU1: O46 | AV1: O47 | AW1: O48 | AX1: O49 | AY1: O50 | AZ1: rapor_no
A2: 1

Sheet EGT Testi
A1: Id | B1: ŞEBEKE GERİLİMİ [v] | C1: YÜK AKIMI [a] | D1: TOPRAK DİRENCİ | E1: TOPRAK-KACAK-NC-µA | F1: TOPRAK-KACAK-SFC-µA | G1: GÖVDE-KAÇAK-NC | H1: GÖVDE-KAÇAK-SFC-PE | I1: GÖVDE-KAÇAK-SFC-LINE | J1: GÜÇ | K1: İZOLASYON-DİRENCİ | L1: EKİPMAN-KAÇAK µA | M1: HASTA-KACAK | N1: HASTA-KACAK | O1: HASTA-KACAK | P1: HASTA-KACAK | Q1: HASTA-KACAK | R1: EGT UZMAN GÖRÜŞÜ
A2: 1 | B2: =RANDBETWEEN(207,245) -> 233 | C2: =RANDBETWEEN(0,16)/100+RANDBETWEEN(100,900)/1000 -> 0.295 | D2: =RANDBETWEEN(0,2)/50+RANDBETWEEN(1,10)/100 -> 0.1 | E2: =RANDBETWEEN(20,480) -> 56 | F2: =RANDBETWEEN(20,980) -> 236 | G2: =RANDBETWEEN(4,92) -> 91 | H2: =RANDBETWEEN(40,420) -> 208 | I2: =RANDBETWEEN(40,420) -> 343 | J2: =RANDBETWEEN(40,150)+RANDBETWEEN(1,9)/10 -> 141.5 | K2: =RANDBETWEEN(81,120) -> 82 | L2: =RANDBETWEEN(68,385) -> 286 | M2: =RANDBETWEEN(8,98)/10000 -> 0.0057 | N2: =RANDBETWEEN(8,98)/10000 -> 0.004 | O2: 0.0046 | P2: 0.0097 | Q2: 0.0027 | R2: Cihaz; IEC60601-1 standartlarına göre Elektriksel Güvenlik Ölçüm testlerinden geçmiştir.
